fUSD/lending_fUSD_20240409
["ID","MTS","AMOUNT","RATE_DAILY","PERIOD"]
[322020461,1712692232054,-2487.71149444,0.00019078,2]
[322020462,1712692232063,-1292.89417591,0.00019086,2]
[322020463,1712692232076,-1434.40762737,0.00019086,2]
[322020464,1712692232148,-6990.45819672,0.00019086,2]
[322020465,1712692232157,-365.96,0.00019094,2]
[322020466,1712692232168,-500.0,0.000191,2]
[322020467,1712692232177,-321.21,0.00019163,2]
[322020468,1712692232187,-500.0,0.00019178,2]
[322020469,1712692232196,-500.0,0.00019178,2]
[322020470,1712692232205,-500.0,0.00019178,2]
[322020471,1712692232216,-500.0,0.00019178,2]
[322020472,1712692232225,-500.0,0.00019178,2]
[322020473,1712692232236,-3408.1,0.00019178,2]
[322020474,1712692232246,-1074.04,0.00019178,2]
[322020475,1712692232256,-500.0,0.00019452,2]
[322020476,1712692232266,-502.01529987,0.00019452,2]
[322020478,1712692232276,-322.16027876,0.00019452,2]
[322020480,1712692232285,-500.0,0.00019452,2]
[322020482,1712692232294,-500.0,0.00019726,2]
[322020484,1712692232303,-500.0,0.00019726,2]
[322020486,1712692232312,-219.88,0.00019846,2]
[322020488,1712692232322,-163.24,0.00019979,2]
[322020490,1712692232331,-500.0,0.00019999,2]
[322020492,1712692232341,-608.07,0.00019999,2]
[322020494,1712692232351,-500.0,0.00019999,2]
[322020496,1712692232361,-500.0,0.00019999,2]
[322020498,1712692232370,-500.0,0.00019999,2]
[322020500,1712692232379,-500.0,0.00019999,2]
[322020502,1712692232390,-246.18334493,0.00019999,2]
[322020504,1712692232399,-500.0,0.00019999,2]
[322020506,1712692232409,-500.0,0.00019999,2]
[322020507,1712692232418,-500.0,0.00019999,2]
[322020508,1712692232428,-500.0,0.00019999,2]
[322020509,1712692232437,-912.13,0.00019999,2]
[322020510,1712692232446,-2939.07,0.00019999,2]
[322020511,1712692232455,-556.17,0.00019999,2]
[322020512,1712692232465,-500.0,0.00019999,2]
[322020513,1712692232474,-500.0,0.00019999,2]
[322020514,1712692232483,-3141.12,0.00019999,2]
[322020515,1712692232492,-500.0,0.00019999,2]
[322020516,1712692232501,-500.0,0.00019999,2]
[322020517,1712692232511,-500.0,0.00019999,2]
[322020518,1712692232519,-500.0,0.0002,2]
[322020519,1712692232528,-326.82111991,0.0002,2]
[322020520,1712692232538,-316.76883624,0.00020173,2]
[322020521,1712692232546,-385.4932407,0.00020233,2]
[322020522,1712692232556,-316.7688362,0.00020254,2]
[322020523,1712692232565,-636.93,0.00020272,2]
[322020524,1712692232573,-500.0,0.00020272,2]
[322020525,1712692232582,-500.0,0.00020272,2]
[322020526,1712692232591,-500.0,0.00020272,2]
[322020527,1712692232600,-500.0,0.00020272,2]
[322020528,1712692232609,-500.0,0.00020272,2]
[322020529,1712692232618,-520.05,0.00020272,2]
[322020530,1712692232627,-500.0,0.00020272,2]
[322020531,1712692232637,-500.0,0.00020272,2]
[322020532,1712692232646,-1227.63,0.00020272,2]
[322020533,1712692232655,-500.0,0.00020272,2]
[322020534,1712692232664,-500.0,0.00020272,2]
[322020535,1712692232673,-2639.43,0.00020272,2]
[322020536,1712692232683,-500.0,0.00020272,2]
[322020537,1712692232692,-500.0,0.00020272,2]
[322020538,1712692232701,-537.07,0.00020272,2]
[322020539,1712692232710,-198.13840495,0.00020272,2]
[322020540,1712692232719,-500.0,0.00020272,2]
[322020541,1712692232729,-500.0,0.00020272,2]
[322020542,1712692232737,-500.0,0.00020272,2]
[322020543,1712692232746,-500.0,0.00020272,2]
[322020544,1712692232755,-974.26,0.00020272,2]
[322020545,1712692232765,-500.0,0.00020272,2]
[322020546,1712692232775,-500.0,0.00020272,2]
[322020547,1712692232786,-500.0,0.00020272,2]
[322020548,1712692232795,-500.0,0.00020272,2]
[322020549,1712692232805,-500.0,0.00020272,2]
[322020550,1712692232815,-500.0,0.00020272,2]
[322020551,1712692232824,-500.0,0.00020272,2]
[322020552,1712692232834,-500.0,0.00020272,2]
[322020553,1712692232843,-500.0,0.00020272,2]
[322020554,1712692232852,-491.08313412,0.00020272,2]
[322020555,1712692232861,-500.0,0.00020272,2]
[322020556,1712692232870,-500.0,0.00020272,2]
[322020557,1712692232879,-746.31,0.00020272,2]
[322020558,1712692232889,-633.85,0.00020272,2]
[322020559,1712692232898,-500.0,0.00020272,2]
[322020560,1712692232907,-975.54,0.00020272,2]
[322020561,1712692232917,-500.0,0.00020272,2]
[322020562,1712692232926,-526.32590144,0.00020272,2]
[322020563,1712692232936,-761.61,0.00020272,2]
[322020564,1712692232945,-500.0,0.00020273,2]
[322020565,1712692232956,-500.0,0.00020273,2]
[322020566,1712692232968,-608.07,0.00020273,2]
[322020567,1712692232979,-500.0,0.00020273,2]
[322020568,1712692232989,-500.0,0.00020273,2]
[322020569,1712692232999,-500.0,0.00020273,2]
[322020570,1712692233009,-500.0,0.00020273,2]
[322020571,1712692233019,-500.0,0.00020273,2]
[322020572,1712692233029,-500.0,0.00020273,2]
[322020573,1712692233039,-500.0,0.00020273,2]
[322020574,1712692233048,-500.0,0.00020273,2]
[322020575,1712692233058,-912.13,0.00020273,2]
[322020576,1712692233067,-2939.07,0.00020273,2]
[322020577,1712692233078,-556.17,0.00020273,2]
[322020578,1712692233089,-500.0,0.00020273,2]
[322020579,1712692233098,-500.0,0.00020273,2]
[322020580,1712692233107,-3141.12,0.00020273,2]
[322020581,1712692233116,-500.0,0.00020273,2]
[322020582,1712692233125,-500.0,0.00020273,2]
[322020583,1712692233134,-316.7688362,0.00020335,2]
[322020584,1712692233144,-385.4932407,0.00020344,2]
[322020585,1712692233153,-150.0,0.00020366,2]
[322020586,1712692233162,-520.36,0.00020366,2]
[322020587,1712692233171,-150.0,0.00020366,2]
[322020588,1712692233181,-417.82,0.00020366,2]
[322020589,1712692233189,-162.23,0.00020366,2]
[322020590,1712692233199,-349.26,0.00020366,2]
[322020591,1712692233208,-1039.24,0.00020366,2]
[322020592,1712692233217,-300.0,0.00020366,2]
[322020593,1712692233227,-697.48,0.00020366,2]
[322020594,1712692233237,-324.41,0.00020366,2]
[322020595,1712692233247,-300.0,0.00020366,2]
[322020596,1712692233256,-150.0,0.00020366,2]
[322020597,1712692233266,-316.7688362,0.00020415,2]
[322020598,1712692233277,-500.0,0.00020446,2]
[322020599,1712692233286,-500.0,0.00020446,2]
[322020600,1712692233296,-500.0,0.00020446,2]
[322020601,1712692233305,-304.07066462,0.00020446,2]
[322020602,1712692233315,-500.0,0.00020446,2]
[322020603,1712692233324,-537.94585539,0.00020446,2]
[322020604,1712692233334,-500.0,0.00020446,2]
[322020605,1712692233344,-500.0,0.00020446,2]
[322020606,1712692233354,-500.0,0.00020446,2]
[322020607,1712692233364,-500.0,0.00020446,2]
[322020608,1712692233374,-500.0,0.00020446,2]
[322020609,1712692233384,-500.0,0.00020446,2]
[322020610,1712692233394,-500.0,0.00020446,2]
[322020611,1712692233404,-513.91618763,0.00020446,2]
[322020612,1712692233413,-1005.89,0.00020446,2]
[322020613,1712692233423,-500.0,0.00020446,2]
[322020614,1712692233432,-500.0,0.00020446,2]
[322020615,1712692233442,-500.0,0.00020446,2]
[322020616,1712692233453,-833.29,0.00020446,2]
[322020617,1712692233462,-500.0,0.00020446,2]
[322020618,1712692233472,-536.42,0.00020446,2]
[322020619,1712692233481,-538.67,0.00020446,2]
[322020620,1712692233490,-500.0,0.00020446,2]
[322020621,1712692233500,-500.0,0.00020446,2]
[322020622,1712692233509,-1042.5,0.00020446,2]
[322020623,1712692233519,-500.0,0.00020446,2]
[322020624,1712692233529,-513.04,0.00020446,2]
[322020625,1712692233538,-500.0,0.00020446,2]
[322020626,1712692233547,-500.0,0.00020446,2]
[322020627,1712692233557,-502.33,0.00020446,2]
[322020628,1712692233566,-500.0,0.00020446,2]
[322020629,1712692233575,-500.0,0.00020446,2]
[322020630,1712692233585,-500.0,0.00020446,2]
[322020631,1712692233594,-895.93,0.00020446,2]
[322020632,1712692233604,-1480.04,0.00020446,2]
[322020633,1712692233613,-549.71,0.00020446,2]
[322020634,1712692233623,-500.0,0.00020446,2]
[322020635,1712692233632,-500.0,0.00020446,2]
[322020636,1712692233642,-385.4932407,0.00020456,2]
[322020637,1712692233651,-316.7688362,0.00020496,2]
[322020638,1712692233661,-2000.0,0.000205,2]
[322020639,1712692233670,-150.0,0.000205,2]
[322020640,1712692233679,-354.0,0.00020511,2]
[322020641,1712692233689,-214.15742684,0.00020546,2]
[322020642,1712692233912,-206.14823361,0.00020546,2]
[322020643,1712692233922,-500.0,0.00020546,2]
[322020644,1712692233932,-500.0,0.00020546,2]
[322020645,1712692233942,-500.0,0.00020546,2]
[322020646,1712692233952,-414.84952503,0.00020546,2]
[322020647,1712692233962,-500.0,0.00020546,2]
[322020648,1712692233972,-520.05,0.00020546,2]
[322020649,1712692233983,-500.0,0.00020546,2]
[322020650,1712692233993,-500.0,0.00020546,2]
[322020651,1712692234002,-1227.63,0.00020546,2]
[322020652,1712692234011,-500.0,0.00020546,2]
[322020653,1712692234020,-500.0,0.00020546,2]
[322020654,1712692234030,-2639.43,0.00020546,2]
[322020655,1712692234040,-500.0,0.00020546,2]
[322020656,1712692234049,-500.0,0.00020546,2]
[322020657,1712692234060,-537.07,0.00020546,2]
[322020658,1712692234070,-500.0,0.00020546,2]
[322020659,1712692234079,-500.0,0.00020546,2]
[322020660,1712692234089,-500.0,0.00020546,2]
[322020661,1712692234099,-500.0,0.00020546,2]
[322020662,1712692234108,-974.26,0.00020546,2]
[322020663,1712692234118,-500.0,0.00020546,2]
[322020664,1712692234127,-194.31733139,0.00020546,2]
[322020665,1712692234136,-500.0,0.00020546,2]
[322020666,1712692234147,-500.0,0.00020546,2]
[322020667,1712692234156,-500.0,0.00020546,2]
[322020668,1712692234165,-365.38,0.00020546,2]
[322020669,1712692234174,-500.0,0.00020546,2]
[322020670,1712692234184,-500.0,0.00020546,2]
[322020671,1712692234193,-500.0,0.00020546,2]
[322020672,1712692234203,-500.0,0.00020546,2]
[322020673,1712692234213,-500.0,0.00020546,2]
[322020674,1712692234222,-746.31,0.00020546,2]
[322020675,1712692234233,-633.85,0.00020546,2]
[322020676,1712692234243,-500.0,0.00020546,2]
[322020677,1712692234252,-975.54,0.00020546,2]
[322020678,1712692234261,-500.0,0.00020546,2]
[322020679,1712692234271,-761.61,0.00020546,2]
[322020680,1712692234280,-996.0,0.00020547,2]
[322020681,1712692234289,-500.0,0.00020547,2]
[322020682,1712692234298,-500.0,0.00020547,2]
[322020683,1712692234307,-608.07,0.00020547,2]
[322020684,1712692234316,-500.0,0.00020547,2]
[322020685,1712692234326,-500.0,0.00020547,2]
[322020686,1712692234335,-500.0,0.00020547,2]
[322020687,1712692234344,-500.0,0.00020547,2]
[322020688,1712692234353,-500.0,0.00020547,2]
[322020689,1712692234362,-500.0,0.00020547,2]
[322020690,1712692234372,-500.0,0.00020547,2]
[322020691,1712692234381,-500.0,0.00020547,2]
[322020692,1712692234390,-912.13,0.00020547,2]
[322020693,1712692234400,-2939.07,0.00020547,2]
[322020694,1712692234410,-556.17,0.00020547,2]
[322020695,1712692234419,-500.0,0.00020547,2]
[322020696,1712692234428,-500.0,0.00020547,2]
[322020697,1712692234438,-3141.12,0.00020547,2]
[322020698,1712692234447,-500.0,0.00020547,2]
[322020699,1712692234456,-500.0,0.00020547,2]
[322020700,1712692234465,-385.4932407,0.00020567,2]
[322020701,1712692234475,-316.7688362,0.00020577,2]
[322020702,1712692234484,-177.42215897,0.000206,2]
[322020703,1712692234493,-316.7688362,0.00020658,2]
[322020704,1712692234502,-385.4932407,0.00020678,2]
[322020705,1712692234512,-500.0,0.00020699,2]
[322020706,1712692234522,-500.0,0.00020699,2]
[322020707,1712692234531,-310.56651371,0.00020699,2]
[322020708,1712692234540,-1736.66,0.00020699,2]
[322020709,1712692234550,-500.0,0.00020699,2]
[322020710,1712692234559,-204.66391376,0.00020699,2]
[322020711,1712692234573,-295.33608624,0.00020699,2]
[322020712,1712692234582,-300.87974476,0.00020699,2]
[322020713,1712692234611,-199.12025524,0.00020699,2]
[322020714,1712692234621,-500.0,0.00020699,2]
[322020715,1712692234631,-521.25,0.00020699,2]
[322020716,1712692234641,-164.34701757,0.00020699,2]
[322020719,1712692238124,-335.65298243,0.00020699,2]
[322020720,1712692238134,-3318.98650502,0.00020699,2]
[322020721,1712692238182,-17.38349498,0.00020699,2]
[322020722,1712692238192,-500.0,0.00020699,2]
[322020723,1712692238202,-1169.73728303,0.000207,2]
[322020724,1712692238212,-1169.73728303,0.000207,2]
[322020725,1712692238222,-1169.73728303,0.000207,2]
[322020726,1712692238232,-1169.73728303,0.000207,2]
[322020727,1712692238242,-1169.73728303,0.000207,2]
[322020728,1712692238252,-1169.73728303,0.000207,2]
[322020729,1712692238261,-1169.73728303,0.000207,2]
[322020730,1712692238271,-1169.73728303,0.000207,2]
[322020731,1712692238282,-1169.73728303,0.000207,2]
[322020732,1712692238291,-1169.73728303,0.000207,2]
[322020733,1712692238300,-1169.73728303,0.000207,2]
[322020734,1712692238309,-1169.73728303,0.000207,2]
[322020735,1712692238318,-1169.73728303,0.000207,2]
[322020736,1712692238328,-1169.73728303,0.000207,2]
[322020737,1712692238337,-1169.73728303,0.000207,2]
[322020738,1712692238346,-1169.73728303,0.000207,2]
[322020739,1712692238355,-1169.73728303,0.000207,2]
[322020740,1712692238365,-1169.73728303,0.000207,2]
[322020741,1712692238374,-1169.73728303,0.000207,2]
[322020742,1712692238383,-1169.73728303,0.000207,2]
[322020743,1712692238392,-1169.73728303,0.000207,2]
[322020744,1712692238401,-1169.73728303,0.000207,2]
[322020745,1712692238411,-1169.73728303,0.000207,2]
[322020746,1712692238420,-1169.73728303,0.000207,2]
[322020747,1712692238430,-1169.73728303,0.000207,2]
[322020748,1712692238439,-375.99675186,0.000207,2]
[322020749,1712692238451,-793.74053117,0.000207,2]
[322020750,1712692238460,-1169.73728303,0.000207,2]
[322020751,1712692238470,-24.7798431,0.000207,2]
[322020752,1712692238503,-1144.95743993,0.000207,2]
[322020753,1712692238513,-1169.73728303,0.000207,2]
[322020754,1712692238523,-1169.73728303,0.000207,2]
[322020755,1712692238532,-1169.73728303,0.000207,2]
[322020756,1712692238542,-1169.73728303,0.000207,2]
[322020758,1712692238551,-1169.73728303,0.000207,2]
[322020760,1712692238560,-1169.73728303,0.000207,2]
[322020762,1712692238570,-1169.73728303,0.000207,2]
[322020764,1712692238579,-1169.73728303,0.000207,2]
[322020766,1712692238588,-1169.73728303,0.000207,2]
[322020767,1712692238597,-1169.73728303,0.000207,2]
[322020769,1712692238606,-1169.73728303,0.000207,2]
[322020772,1712692238615,-1169.73728303,0.000207,2]
[322020775,1712692238624,-1169.73728303,0.000207,2]
[322020778,1712692238634,-1169.73728303,0.000207,2]
[322020780,1712692238642,-1169.73728303,0.000207,2]
[322020783,1712692238651,-1169.73728303,0.000207,2]
[322020785,1712692238660,-1169.73728303,0.000207,2]
[322020787,1712692238669,-1169.73728303,0.000207,2]
[322020788,1712692238679,-1169.73728303,0.000207,2]
[322020789,1712692238688,-1169.73728303,0.000207,2]
[322020790,1712692238697,-1169.73728303,0.000207,2]
[322020791,1712692238706,-1169.73728303,0.000207,2]
[322020792,1712692238715,-1169.73728303,0.000207,2]
[322020793,1712692238724,-1169.73728303,0.000207,2]
[322020794,1712692238733,-1169.73728303,0.000207,2]
[322020795,1712692238743,-1169.73728303,0.000207,2]
[322020796,1712692238752,-1169.73728303,0.0002071,2]
[322020797,1712692238761,-1169.73728303,0.0002071,2]
[322020798,1712692238770,-1169.73728303,0.0002071,2]
[322020799,1712692238779,-1169.73728303,0.0002071,2]
[322020800,1712692238789,-1169.73728303,0.0002071,2]
[322020801,1712692238798,-1169.73728303,0.0002071,2]
[322020802,1712692238807,-1169.73728303,0.0002071,2]
[322020803,1712692238816,-1169.73728303,0.0002071,2]
[322020804,1712692238825,-1169.73728303,0.0002071,2]
[322020805,1712692238834,-1169.73728303,0.0002071,2]
[322020806,1712692238843,-1169.73728303,0.0002071,2]
[322020807,1712692238852,-1169.73728303,0.0002071,2]
[322020808,1712692238861,-1169.73728303,0.0002071,2]
[322020809,1712692238870,-500.0,0.0002072,2]
[322020810,1712692238879,-500.0,0.0002072,2]
[322020811,1712692238889,-500.0,0.0002072,2]
[322020812,1712692238898,-500.0,0.0002072,2]
[322020813,1712692238907,-500.0,0.0002072,2]
[322020814,1712692238917,-500.0,0.0002072,2]
[322020815,1712692238926,-500.0,0.0002072,2]
[322020816,1712692238935,-181.03953863,0.0002072,2]
[322020817,1712692238944,-500.0,0.0002072,2]
[322020818,1712692238955,-500.0,0.0002072,2]
[322020819,1712692238964,-500.0,0.0002072,2]
[322020820,1712692238975,-1005.89,0.0002072,2]
[322020821,1712692238988,-500.0,0.0002072,2]
[322020822,1712692238999,-500.0,0.0002072,2]
[322020823,1712692239008,-606.78014229,0.0002072,2]
[322020824,1712692239018,-833.29,0.0002072,2]
[322020825,1712692239029,-500.0,0.0002072,2]
[322020826,1712692239039,-536.42,0.0002072,2]
[322020827,1712692239049,-538.67,0.0002072,2]
[322020828,1712692239061,-500.0,0.0002072,2]
[322020829,1712692239072,-500.0,0.0002072,2]
[322020830,1712692239081,-1042.5,0.0002072,2]
[322020831,1712692239092,-500.0,0.0002072,2]
[322020832,1712692239103,-513.04,0.0002072,2]
[322020833,1712692239113,-500.0,0.0002072,2]
[322020834,1712692239122,-500.0,0.0002072,2]
[322020835,1712692239131,-502.33,0.0002072,2]
[322020836,1712692239141,-500.0,0.0002072,2]
[322020837,1712692239150,-500.0,0.0002072,2]
[322020838,1712692239159,-500.0,0.0002072,2]
[322020839,1712692239168,-895.93,0.0002072,2]
[322020840,1712692239178,-1480.04,0.0002072,2]
[322020841,1712692239188,-500.0,0.0002072,2]
[322020842,1712692239197,-500.0,0.0002072,2]
[322020843,1712692239206,-1169.73728303,0.00020728,2]
[322020844,1712692239215,-316.7688362,0.00020738,2]
[322020845,1712692239224,-177.42215895,0.0002075,2]
[322020846,1712692239235,-1169.73728303,0.00020763,2]
[322020847,1712692239245,-200.0,0.00020773,2]
[322020848,1712692239255,-1000.0,0.00020773,2]
[322020849,1712692239264,-500.0,0.00020773,2]
[322020850,1712692239274,-200.0,0.00020773,2]
[322020851,1712692239283,-385.4932407,0.00020789,2]
[322020852,1712692239292,-178.29559,0.0002079,2]
[322020853,1712692239301,-343.06359052,0.000208,2]
[322020854,1712692239311,-1169.73728303,0.00020809,2]
[322020855,1712692239320,-1169.73728303,0.0002081,2]
[322020856,1712692239330,-1169.73728303,0.0002081,2]
[322020857,1712692239339,-1169.73728303,0.0002081,2]
[322020858,1712692239348,-1169.73728303,0.0002081,2]
[322020859,1712692239358,-1169.73728303,0.0002081,2]
[322020860,1712692239367,-1169.73728303,0.0002081,2]
[322020861,1712692239376,-1169.73728303,0.0002081,2]
[322020862,1712692239385,-1169.73728303,0.0002081,2]
[322020863,1712692239394,-1169.73728303,0.0002081,2]
[322020864,1712692239403,-1169.73728303,0.0002081,2]
[322020865,1712692239413,-1169.73728303,0.0002081,2]
[322020866,1712692239422,-1169.73728303,0.0002081,2]
[322020867,1712692239431,-1169.73728303,0.0002081,2]
[322020868,1712692239440,-1169.73728303,0.00020811,2]
[322020869,1712692239449,-1169.73728303,0.00020811,2]
[322020870,1712692239458,-1169.73728303,0.00020811,2]
[322020871,1712692239467,-1169.73728303,0.00020811,2]
[322020872,1712692239477,-1169.73728303,0.00020811,2]
[322020873,1712692239486,-1169.73728303,0.00020811,2]
[322020874,1712692239495,-1169.73728303,0.00020811,2]
[322020875,1712692239504,-1169.73728303,0.00020811,2]
[322020876,1712692239514,-1169.73728303,0.00020811,2]
[322020877,1712692239523,-1169.73728303,0.00020811,2]
[322020878,1712692239532,-1169.73728303,0.00020811,2]
[322020879,1712692239544,-316.7688362,0.00020819,2]
[322020880,1712692239553,-500.0,0.0002082,2]
[322020881,1712692239563,-500.0,0.0002082,2]
[322020882,1712692239572,-500.0,0.0002082,2]
[322020883,1712692239581,-500.0,0.0002082,2]
[322020884,1712692239590,-520.05,0.0002082,2]
[322020885,1712692239600,-500.0,0.0002082,2]
[322020886,1712692239609,-500.0,0.0002082,2]
[322020887,1712692239618,-1227.63,0.0002082,2]
[322020888,1712692239630,-500.0,0.0002082,2]
[322020889,1712692239642,-500.0,0.0002082,2]
[322020890,1712692239652,-2639.43,0.0002082,2]
[322020891,1712692239662,-500.0,0.0002082,2]
[322020892,1712692239673,-500.0,0.0002082,2]
[322020893,1712692239684,-537.07,0.0002082,2]
[322020894,1712692239694,-500.0,0.0002082,2]
[322020895,1712692239704,-500.0,0.0002082,2]
[322020896,1712692239713,-500.0,0.0002082,2]
[322020897,1712692239723,-500.0,0.0002082,2]
[322020898,1712692239733,-974.26,0.0002082,2]
[322020899,1712692239742,-500.0,0.0002082,2]
[322020900,1712692239751,-500.0,0.0002082,2]
[322020901,1712692239761,-500.0,0.0002082,2]
[322020902,1712692239772,-500.0,0.0002082,2]
[322020903,1712692239781,-500.0,0.0002082,2]
[322020905,1712692239790,-500.0,0.0002082,2]
[322020907,1712692239799,-500.0,0.0002082,2]
[322020909,1712692239808,-500.0,0.0002082,2]
[322020911,1712692239818,-616.46706566,0.0002082,2]
[322020913,1712692239827,-746.31,0.0002082,2]
[322020915,1712692239836,-633.85,0.0002082,2]
[322020917,1712692239845,-500.0,0.0002082,2]
[322020919,1712692239855,-975.54,0.0002082,2]
[322020921,1712692239864,-500.0,0.0002082,2]
[322020923,1712692239874,-761.61,0.0002082,2]
[322020925,1712692239883,-1169.73728303,0.00020821,2]
[322020927,1712692239892,-500.0,0.00020821,2]
[322020929,1712692239902,-608.07,0.00020821,2]
[322020931,1712692239911,-500.0,0.00020821,2]
[322020933,1712692239920,-500.0,0.00020821,2]
[322020935,1712692239929,-500.0,0.00020821,2]
[322020936,1712692239938,-500.0,0.00020821,2]
[322020938,1712692239948,-500.0,0.00020821,2]
[322020940,1712692239958,-500.0,0.00020821,2]
[322020943,1712692239969,-500.0,0.00020821,2]
[322020945,1712692239982,-500.0,0.00020821,2]
[322020947,1712692239992,-912.13,0.00020821,2]
[322020948,1712692240002,-2939.07,0.00020821,2]
[322020950,1712692240011,-556.17,0.00020821,2]
[322020952,1712692240020,-500.0,0.00020821,2]
[322020954,1712692240029,-500.0,0.00020821,2]
[322020956,1712692240038,-3141.12,0.00020821,2]
[322020958,1712692240047,-500.0,0.00020821,2]
[322020960,1712692240058,-500.0,0.00020821,2]
[322020962,1712692240067,-1000.0,0.00020831,2]
[322020964,1712692240077,-500.0,0.00020831,2]
[322020966,1712692240087,-162.15,0.00020871,2]
[322020968,1712692240096,-160.0,0.00020882,2]
[322020970,1712692240106,-1169.73728303,0.00020885,2]
[322020972,1712692240115,-160.0,0.00020891,2]
[322020974,1712692240124,-1000.0,0.00020895,2]
[322020976,1712692240133,-1000.0,0.00020895,2]
[322020978,1712692240142,-1000.0,0.00020895,2]
[322020980,1712692240150,-1000.0,0.00020895,2]
[322020982,1712692240160,-1000.0,0.00020895,2]
[322020984,1712692240169,-1000.0,0.00020895,2]
[322020986,1712692240178,-1000.0,0.00020895,2]
[322020988,1712692240187,-1000.0,0.00020895,2]
[322020990,1712692240198,-1000.0,0.00020895,2]
[322020992,1712692240207,-1000.0,0.00020895,2]
[322020994,1712692240215,-1000.0,0.00020895,2]
[322020996,1712692240224,-1000.0,0.00020895,2]
[322020998,1712692240235,-1000.0,0.00020895,2]
[322021000,1712692240244,-1000.0,0.00020895,2]
[322021001,1712692240253,-1000.0,0.00020895,2]
[322021003,1712692240262,-1000.0,0.00020895,2]
[322021005,1712692240273,-1000.0,0.00020895,2]
[322021008,1712692240284,-1000.0,0.00020895,2]
[322021009,1712692240294,-1000.0,0.00020895,2]
[322021012,1712692240303,-1000.0,0.00020895,2]
[322021014,1712692240313,-1000.0,0.00020895,2]
[322021016,1712692240324,-1000.0,0.00020895,2]
[322021018,1712692240334,-1000.0,0.00020895,2]
[322021019,1712692240343,-1000.0,0.00020895,2]
[322021021,1712692240353,-263.6881,0.00020895,2]
[322021023,1712692240363,-500.0,0.00020895,2]
[322021025,1712692240372,-500.0,0.00020895,2]
[322021028,1712692240383,-500.0,0.00020895,2]
[322021029,1712692240393,-500.0,0.00020895,2]
[322021032,1712692240403,-500.0,0.00020895,2]
[322021034,1712692240412,-500.0,0.00020895,2]
[322021035,1712692240422,-505.7484,0.00020895,2]
[322021037,1712692240431,-3071.9207,0.000209,2]
[322021039,1712692240441,-1859.57162693,0.000209,2]
[322021041,1712692240450,-160.0,0.000209,2]
[322021043,1712692240460,-522.02945866,0.000209,2]
[322021046,1712692240470,-500.0,0.000209,2]
[322021048,1712692240480,-385.4932407,0.000209,2]
[322021050,1712692240489,-740.07636061,0.000209,2]
[322021051,1712692240499,-740.07636061,0.000209,2]
[322021053,1712692240509,-740.07636061,0.000209,2]
[322021054,1712692240518,-316.7688362,0.000209,2]
[322021055,1712692240528,-430.34640484,0.000209,2]
[322021075,1712692240730,-4391.64442653,0.000209,2]
[322021077,1712692240740,-17555.0720212,0.000209,2]
[322021079,1712692240751,-177.42215895,0.000209,2]
[322021081,1712692240761,-5376.36422578,0.000209,3]
[322021083,1712692240771,-325.10203134,0.000209,2]
[322021085,1712692240780,-441.10373801,0.000209,2]
[322021087,1712692240789,-154.72302819,0.000209,2]
[322021089,1712692240799,-420.39691293,0.000209,2]
[322021090,1712692240809,-500.0,0.00020973,2]
[322021092,1712692240818,-500.0,0.00020973,2]
[322021094,1712692240827,-1736.66,0.00020973,2]
[322021096,1712692240837,-500.0,0.00020973,2]
[322021098,1712692240847,-500.0,0.00020973,2]